Cogmind - Beta 17 @@@ ROGUE MODE // 2026.08.06 @ 23:23:38 Player: Momo Result: Destroyed by BZ-96A(R) with Subdweller Machine Gun Performance ------------- Evolutions (0) 0 Regions Visited (3) 600 Robots Destroyed (11) 55 Value Destroyed (289) 289 Prototype IDs (20) 400 Alien Tech Used (0) 0 Bonus (46) 46 TOTAL SCORE: 1390 Bonus ------- Follower Combat Kills 46 Cogmind --------- Core Integrity 0/250 Matter 230/300 Energy 100/100 System Corruption 0% Temperature Cool (0) Movement Hovering (80) Location -10/Subcaves Parts ------- > --- POWER (1) -------- (None) > --- PROPULSION (2) --- Combat Airjet > --- UTILITY (2) ------ Structural Scanner > --- WEAPON (2) ------- Barrage Gun Subdweller Shrapnel Launcher > --- INVENTORY (5) ---- Structural Scanner Self-contained Transmogrifier Power Bank Multitool Ripper Peak State ------------ > --- POWER ------------ (None) > --- PROPULSION ------- Makeshift Leg Combat Airjet > --- UTILITY ---------- Small Storage Unit Structural Scanner > --- WEAPON ----------- Barrage Gun Ripper > --- INVENTORY -------- Light Angular Momentum Engine Huge Storage Unit Structural Scanner Self-contained Transmogrifier Power Bank Subdweller Shrapnel Launcher Mining Laser Multitool [Rating: 21] Favorites ----------- Power Light Ion Engine Engine Light Ion Engine Propulsion Combat Airjet Leg Makeshift Leg Hover Unit Combat Airjet Utility Structural Scanner Device Structural Scanner Storage Small Storage Unit Weapon Barrage Gun Ballistic Gun Barrage Gun Launcher Subdweller Shrapnel Launcher Special Weapon Mining Laser Slashing Weapon Ripper Build | -11 -10 -10 -10 ------- Run | Yrd Mat Min Sub Slots Evolved . | . . . . Power . | . . . . Propulsion . | . . . . Utility . | . . . . Weapon . | . . . . Parts Attached 11 | . 1 6 4 Power 1 | . . 1 . Engine 1 | . . 1 . Core . | . . . . Reactor . | . . . . Propulsion 3 | . . 3 . Treads . | . . . . Leg 1 | . . 1 . Wheel . | . . . . Hover 2 | . . 2 . Flight . | . . . . Utility 2 | . 1 . 1 Device 1 | . 1 . . Storage 1 | . . . 1 Processor . | . . . . Hackware . | . . . . Protection . | . . . . Artifact . | . . . . Weapon 5 | . . 2 3 Energy Gun . | . . . . Energy Cannon . | . . . . Ballistic Gun 2 | . . 1 1 Ballistic Cannon . | . . . . Launcher 1 | . . . 1 Special Weapon 1 | . . 1 . Impact Weapon . | . . . . Slashing Weapon 1 | . . . 1 Piercing Weapon . | . . . . Special Melee Weapon . | . . . . Unidentified Prototypes . | . . . . Parts Lost 3 | . . 1 2 Power 1 | . . . 1 Propulsion 2 | . . 1 1 Utility . | . . . . Weapon . | . . . . Highest Loss Streak 1 | . . 1 1 To Critical Strikes . | . . . . Average Backups 5 | . 1 3 7 Power . | . . . . Propulsion . | . . . . Utility 2 | . 1 2 2 Weapon 1 | . . . 1 Tool/Special . | . . . . Unused Backups 10 | . . 2 8 Power 2 | . . 1 1 Propulsion 2 | . . 1 1 Utility 3 | . . . 3 Weapon 1 | . . . 1 Tool/Special 2 | . . . 2 Average Slot Usage (%) 69 | . 6 51 80 Engine 3 | . . 9 2 Leg 8 | . . 3 10 Hover 13 | . . 15 14 Device 13 | . 6 14 13 Storage 9 | . . . 13 Ballistic Gun 10 | . . 2 14 Special Weapon 2 | . . 6 1 Slashing Weapon 6 | . . . 9 Peak Build Rating 21 | . 1 13 21 Average Rating 14 | . . 7 18 On Entrance 3 | . . 1 13 Avg Prop Armor Cover (%) 12 | . . 19 11 Naked Turns 60 | . 60 . . Heaviest Build 17 | . 1 6 17 Greatest Support 18 | 3 3 18 12 Greatest Overweight (x) 1 | . . . 1 Average Overweight (x) . | . . . . Largest Inventory Capacity 8 | 5 5 5 8 Average Capacity 7 | 5 5 5 7 Most Carried 8 | . 2 5 8 Average Carried 6 | . 1 3 7 Final Capacity 5 | 5 5 5 5 Final Carried 5 | . 2 5 5 Class Distribution -------------------- 92% | Mutant 7% | Scavenger-Mutant Dominant Class ---------------- Mutant | -10/Materials Mutant | -10/Mines Mutant | -10/Subcaves Resources | -11 -10 -10 -10 ----------- Run | Yrd Mat Min Sub Matter Collected 472 | 200 . 65 207 Remotely . | . . . . Salvage Created 245 | . . . 245 Parts 20 | . . 2 18 Haulers Intercepted . | . . . . Recyclers Shooed . | . . . . Parts Field Recycled . | . . . . Retrieved Matter . | . . . . Parts Self-Destructed 22 | . . . 22 Prevented . | . . . . Parts Restored . | . . . . Kills | -11 -10 -10 -10 ------- Run | Yrd Mat Min Sub Combat Hostiles Destroyed 11 | . . 2 9 Melee 3 | . . . 3 Cannons 2 | . . 2 . AOE 6 | . . . 6 Classes Destroyed 4 | . . 1 3 Swarmer 5 | . . 2 3 Grunt 1 | . . . 1 Sentry 1 | . . . 1 Subdweller 4 | . . . 4 Best Kill Streak 3 | . . 1 3 Combat Bots Only 3 | . . 1 3 Max Kills in Single Turn 2 | . . 1 2 Gunslinging . | . . . . Exploded 2 | . . . 2 Melee 1 | . . . 1 Uniques/NPCs Destroyed . | . . . . Combat | -11 -10 -10 -10 -------- Run | Yrd Mat Min Sub Hostile Shots Fired 61 | . 5 19 37 Missed 24 | . 1 6 17 Hits 37 | . 4 13 20 Projectile 37 | . 4 13 20 Damage Taken 650 | . 45 103 502 Core 265 | . 45 20 200 Absorbed by Shields . | . . . . Core Remaining (%) 100 | 100 . . . Volleys Fired 21 | . . 6 15 Largest 1 | . . 1 1 Hottest 100 | . . 100 100 Shots Fired 21 | . . 6 15 Gun 3 | . . . 3 Cannon . | . . . . Launcher 8 | . . . 8 Special 10 | . . 6 4 Kinetic 11 | . . . 11 Thermal 10 | . . 6 4 Explosive . | . . . . Electromagnetic . | . . . . Robot Hit Streak 4 | . . 2 4 Robot Miss Streak 2 | . . 1 2 Penetration Max . | . . . . Secondary Targets . | . . . . Shots Hit Robots 29 | . . 4 25 Core Hits 13 | . . 2 11 Critical Kills . | . . . . Critical Parts Destroyed . | . . . . Critical Strikes 2 | . . . 2 Sever 2 | . . . 2 Melee Attacks 42 | . . . 42 Impact . | . . . . Slashing 42 | . . . 42 Piercing . | . . . . Sneak Attacks . | . . . . Combat Hostiles . | . . . . Follow-up Attacks . | . . . . Damage Inflicted 1199 | . . 96 1103 Guns 16 | . . . 16 Cannons . | . . . . Explosions 514 | . . . 514 Melee 573 | . . . 573 Ramming . | . . . . Kinetic 530 | . . . 530 Thermal 96 | . . 96 . Explosive . | . . . . Electromagnetic . | . . . . Impact . | . . . . Slashing 573 | . . . 573 Piercing . | . . . . Highest Corruption . | . . . . Average Corruption . | . . . . Corruption Purged . | . . . . Corruption Blocked . | . . . . Overload Shots . | . . . . Overflow Damage 9 | . . 8 1 Projectiles 8 | . . 8 . Explosions 1 | . . . 1 Melee . | . . . . Knockbacks . | . . . . Impact . | . . . . Kinetic . | . . . . Secondary . | . . . . Self-Inflicted Damage 21 | . . . 21 Shots 2 | . . . 2 Rammed . | . . . . Targets Rammed . | . . . . Kicked . | . . . . Crushed . | . . . . Highest Temperature 106 | . . 106 . Average Temperature 48 | . . 48 . Received Heat Transfer 123 | . 24 . 99 Siege Activations . | . . . . Martial Activations . | . . . . Shielding Activations . | . . . . Robots Disrupted . | . . . . Combat Hostiles . | . . . . Robots Corrupted . | . . . . Combat Hostiles . | . . . . Parts Fried . | . . . . Impact Corruptions . | . . . . Robots Melted . | . . . . Combat Hostiles . | . . . . Parts Melted . | . . . . Heat Transferred 200 | . . 200 . Parts Sabotaged . | . . . . Parts Stolen . | . . . . Parts Stripped . | . . . . Power Chain Reactions . | . . . . Alert | -11 -10 -10 -10 ------- Run | Yrd Mat Min Sub Maximum Alert Level . | . . . . Low Security (%) 100 | 100 100 100 . Level 1 . | . . . . Level 2 . | . . . . Level 3 . | . . . . Level 4 . | . . . . Level 5 . | . . . . High Security . | . . . . Max Security . | . . . . Peak Influence 40 | . 40 34 . Initial 15 | . . 15 . Average 6 | . 5 6 . Influence Increases 381 | . 79 142 160 Destroy 0b10 Robot/C 180 | . . 80 100 Destroy Leader 10 | . . 10 . Allied During Kill 5 | . . 5 . Successful Hack 19 | . 19 . . Destroy Structure 2 | . . 2 . Partial Spotted 30 | . 30 . . Lose Combat Pursuer 135 | . 30 45 60 Influence Decreases 381 | . 39 182 160 Entered New Map 25 | . . 25 . Time Decay 296 | . 39 107 150 Lost Part 20 | . . 10 10 Lost Ally 40 | . . 40 . Squads Dispatched 1 | . 1 . . Investigation . | . . . . Extermination . | . . . . Reinforcement 1 | . 1 . . Assault . | . . . . Garrison . | . . . . Intercept . | . . . . Searches Triggered . | . . . . Construction Impeded . | . . . . Haulers Reinforced . | . . . . Active Scanning Responses . | . . . . Cargo Convoy Interrupts . | . . . . Stealth | -11 -10 -10 -10 --------- Run | Yrd Mat Min Sub Distress Signals 2 | . 2 . . Communications Jammed . | . . . . Distress Signals . | . . . . Times Spotted 32 | . 5 8 19 Peak Tracking Total 5 | . 5 3 5 Tactical Retreats 8 | . 1 2 5 Traps | -11 -10 -10 -10 ------- Run | Yrd Mat Min Sub Traps Triggered 2 | . . . 2 Indirectly . | . . . . Trap Hack Attempts . | . . . . Triggered . | . . . . Disarmed . | . . . . Reprogrammed . | . . . . Reused 2 | . . . 2 Traps Extracted . | . . . . Installed 2 | . . . 2 Triggered 1 | . . . 1 Most Traps Carried 1 | . . . 1 Machines | -11 -10 -10 -10 ---------- Run | Yrd Mat Min Sub Machines Disabled 1 | . . . 1 Max in Single Turn 1 | . . . 1 Machines Repaired . | . . . . Machines Dismantled . | . . . . Machines Sabotaged . | . . . . Overloaded Fab Kills . | . . . . Hacking | -11 -10 -10 -10 --------- Run | Yrd Mat Min Sub Machines Accessed 4 | . 2 . 2 Terminals 2 | . 2 . . Fabricators . | . . . . Repair Stations . | . . . . Recycling Units . | . . . . Scanalyzers . | . . . . Garrison Access . | . . . . Total Hacks 26 | . 13 . 13 Successful 20 | . 7 . 13 Failed 6 | . 6 . . Catastrophic . | . . . . Database Lockouts . | . . . . Manual 10 | . 10 . . Terminals 13 | . 13 . . Fabricators . | . . . . Repair Stations . | . . . . Recycling Units . | . . . . Scanalyzers . | . . . . Garrison Access . | . . . . Terminal Hacks 16 | . 3 . 13 Record 12 | . . . 12 Prototype ID Bank 3 | . 3 . . Proto ID Catalog 1 | . . . 1 Fabricator Hacks . | . . . . Repair Station Hacks . | . . . . Recycling Unit Hacks . | . . . . Scanalyzer . | . . . . Garrison Access Hacks . | . . . . Unauthorized Hacks 4 | . 4 . . Terminals 4 | . 4 . . Botnet 1 | . 1 . . Operators 1 | . 1 . . Skim 2 | . 2 . . Fabricators . | . . . . Repair Stations . | . . . . Recycling Units . | . . . . Scanalyzers . | . . . . Garrison Access . | . . . . Data Cores Recovered . | . . . . Used . | . . . . Hacking Detections 2 | . 2 . . Full Trace Events . | . . . . Feedback Events . | . . . . Feedback Blocked . | . . . . Robot Schematics Acquired . | . . . . Robots Built . | . . . . Authchips . | . . . . Time . | . . . . Total Robot Build Rating . | . . . . Part Schematics Acquired . | . . . . Parts Built . | . . . . Authchips . | . . . . Time . | . . . . Total Part Build Rating . | . . . . Part Studies Acquired . | . . . . Parts Repaired . | . . . . Time . | . . . . Parts Recycled . | . . . . Recycled Matter . | . . . . Retrieved Matter . | . . . . Retrieved Components . | . . . . Parts Scanalyzed . | . . . . Part Schematics Acquired . | . . . . Parts Damaged . | . . . . Bothacking | -11 -10 -10 -10 ------------ Run | Yrd Mat Min Sub Used RIF Installer . | . . . . Robots Hacked . | . . . . Non-combat . | . . . . Combat . | . . . . Robot Hacks Applied . | . . . . Relay Couplers Released . | . . . . Fabnet Peak Effective % . | . . . . Robots Rewired . | . . . . Allies Hacked . | . . . . Hacks Repelled . | . . . . Allies | -11 -10 -10 -10 -------- Run | Yrd Mat Min Sub Total Allies 6 | . . 6 . Largest Group 3 | . . 3 . Highest-Rated Group 77 | . . 77 . Highest-Rated Ally 31 | . . 31 . Total Orders . | . . . . Ally Attacks 15 | . . 15 . Total Damage 192 | . . 192 . Kills 4 | . . 4 . Allies Corrupted . | . . . . Allies Melted . | . . . . Intel | -11 -10 -10 -10 ------- Run | Yrd Mat Min Sub Active Infowar (turns) 2292 | . 62 536 1694 Structural 2292 | . 62 536 1694 Robot Analysis Total . | . . . . Derelict Logs Recovered 3 | . . 1 2 Drone Launches . | . . . . Drone Recoveries . | . . . . Exploration | -11 -10 -10 -10 ------------- Run | Yrd Mat Min Sub Turns Passed 2369 | 12 122 536 1699 Spaces Moved 2427 | 23 207 561 1636 Core 484 | 23 207 254 . Treads . | . . . . Legs . | . . . . Wheels . | . . . . Hover 1943 | . . 307 1636 Flight . | . . . . Fastest Speed 50 | 50 50 50 80 Average Speed 80 | 50 50 63 90 Slowest Speed 160 | 50 50 90 160 Overloaded Moves . | . . . . Propulsion Burnouts . | . . . . Robots Hopped . | . . . . Potential Cave-ins . | . . . . Cave-ins Triggered . | . . . . Exploration Rate (%) 56 | 4 47 88 88 Regions Visited 3 Branch Regions 2 Pre-discovered Areas . | . . . . Known Exits Taken 1 | . . 1 . Unknown Exits Taken 2 | 1 1 . . Scrap Searched 2 | . . 2 . Spaces Dug . | . . . . Terrain Destroyed 98 | . . 2 96 Melee . | . . . . Projectile 2 | . . 2 . AOE 96 | . . . 96 Terrain Rammed . | . . . . Walls Destroyed . | . . . . Machines Disabled . | . . . . Actions | -11 -10 -10 -10 --------- Run | Yrd Mat Min Sub Total 2740 | 22 224 722 1772 Wait 202 | . 15 142 45 Move 2424 | 22 206 560 1636 Hop . | . . . . Pick Up 15 | . 2 6 7 Fast Attach 7 | . 1 5 1 Attach 8 | . . 1 7 Detach 6 | . . . 6 Swap 3 | . . . 3 Drop 10 | . . 2 8 Fire 21 | . . 6 15 Melee 42 | . . . 42 Ram . | . . . . Kick . | . . . . Crush . | . . . . Escape Stasis . | . . . . Rewire . | . . . . Trap 2 | . . . 2 Miscellaneous . | . . . . Route ------- -11/Scrapyard -10/Materials (discovered 2 exits: [*Mat] / [*Min]) -10/Mines (discovered 3 exits: [*Mat x2] / *Sub) -10/Subcaves (discovered 2 exits: [*Mat x2]) History --------- Turn | Location | Event 3 | -11/Scrapyard | Discovered new exit (range 16) 13 | -11/Scrapyard | Entered Materials 107 | -10/Materials | Discovered new exit (range 15) 121 | -10/Materials | Discovered new exit (range 10) 135 | -10/Materials | Entered Mines 152 | -10/Mines | Assisted by bots powering up and referring to "LRC-V3" 162 | -10/Mines | Assembled infested the area 174 | -10/Mines | Discovered new exit (range 7) 177 | -10/Mines | Received a Mining Laser from a helpful Derelict 274 | -10/Mines | Discovered new exit (range 3) 308 | -10/Mines | Build established: Mutant 385 | -10/Mines | Identified exit to Subcaves 671 | -10/Mines | Entered Subcaves 681 | -10/Subcaves | Shifting Twisted Machinery released Barrage Gun 681 | -10/Subcaves | Shifting Twisted Machinery released Sub. Beam Cannon 790 | -10/Subcaves | Discovered new exit (range 11) 1139 | -10/Subcaves | Core integrity fell below 50% 1222 | -10/Subcaves | A swath of the cavern ceiling suddenly collapsed 1318 | -10/Subcaves | Visited 4L-MR0's lab 1321 | -10/Subcaves | Learned 2 Materials zone layouts 1329 | -10/Subcaves | Found Power Bank 1332 | -10/Subcaves | Found Prototype Device 1910 | -10/Subcaves | Core integrity fell below 20% 2006 | -10/Subcaves | Shifting Twisted Machinery released Shrapnel Trap 2007 | -10/Subcaves | Shifting Twisted Machinery released Humpback 2038 | -10/Subcaves | Visited Clippyterm 2040 | -10/Subcaves | Learned Factory emergency access door positions 2040 | -10/Subcaves | Learned Research machine intel 2077 | -10/Subcaves | A swath of the cavern ceiling suddenly collapsed 2087 | -10/Subcaves | Shifting Twisted Machinery released Battle Rifle 2087 | -10/Subcaves | Discovered new exit (range 6) 2105 | -10/Subcaves | Shifting Twisted Machinery released Flamer 2370 | -10/Subcaves | Destroyed by BZ-96A(R) with Subdweller Machine Gun Last Messages --------------- It looks like you're searching for a worm, right? Don't bother with early when it comes to the Lifeworm, it's never early, but by some measures it might be just in time... 02077_ Sub. Optics crushed. 02077_ 52 Matter crushed. 02077_ Sub. Beam Cannon crushed. A swath of the cavern ceiling suddenly collapses. Battle Rifle falls loose from the Twisted Machinery. 02087_ EXIT=FOUND Flamer falls loose from the Twisted Machinery. 02332_ Acquired derelict log, extracted data. Data stored: Storage entrances (x1). 02348_ Dropped Sub. Machine Gun. 02349_ Dropped Huge Storage Unit. 02349_ Dropped Lgt. Angular Momentum Engine. 02350_ Dropped Sml. Storage Unit. 02368_ IX-UJ1(R) destroyed. Map ----- +----------------------------------------------------+ | ??### ####???????????????????????????### | | ??### ## ##???????????????????????????## ## | | ??## ##???????????????????????????## ##### | | ??##" ##???????????????????????????### ##### | | ??##"" ##???????????????????????????"######## | | ??## "" ####????????????????????????????####### | | ??## <" ####??????????????????????????????## | | ??## "###???????????????????????????????## | | ??##" """###?????????????## "?????????????### | | ??## """"##???????????##### ????????? ######## | | ??##" """ ##????##########"$"??? ??? ######## | | ??### ####???######### " ##"? ## ### | | ??####"#####???### R#; "##?### ## | | ???##########??## # % ?## | | ????#####?####### & | | ??????????## #### ### | | ??????????# % ## #### # | | ?????????????? #### ?#### # | | ??????????????## ##### ?#### | | ??????????????### ##?## ## ## | | ???????????????## ##### ### | | ???????????????## #### ## ### | | ?????????????#### % ## #### ######## # | | ????????????### ## ######?????####### | | ???????????### ### ###### ???????## # | | ???????????## ### @ ## ## ? ##???## # | | ???????????## ??### ##???## | | ???????????## ?#### ## ##???## | | ???????????### ##?### ### #### #???## | | ???????????######?## #######???? ????### | | ????????????####??### #####??????????????### | | ?????????????????#### ###????????? ?#### | | ?????????????????###! ##????????? ?### | | ?????????????????##![ ##???????? ?## | | ?????????????????###* ## ##???????? #### | | ?????????????????## #########????? ####### | | ?????????????????### #############?## ####### | | #####????????????## ###### ######### ## ## | | ######???????????## ##### | | ""###???????????## | | " "##???????????### # # ## | | "" ##???????????### # ## # ##### ## | | " "##????????????## ### ##### #### | | " "##????????????## #### #### #### | | "" ##????????????## ### # ### #### | | " "##????????????######## # # | | " "##????????????######## | | " ###??????????????????### ### ## | | "###??????????????????## #### ### ## | | ###???????????????????### ######## ### ### | +----------------------------------------------------+ Best States ------------- Heat Dissipation 25 Energy Generation 10 Energy Capacity 125 Matter Stores 300 Matter Capacity 300 Sight Range 16 Terrain Scan Density 10 Evasion (%) 51 Item Schematics ----------------- None Robot Schematics ------------------ None Fabricated ------------ Nothing Repaired ---------- Nothing Studied --------- None Alien Tech Used ----------------- None Achievements -------------- None Challenges ------------ None Game ------ Seed ImprinterCompositeStorm Manual? 0 Play Time 00:21:28 Cumulative 489.4 hours Start 2026.08.06 @ 23:03:38 End 2026.08.06 @ 23:23:38 Sessions 1 Manual Loads 0 Difficulty Rogue Special Mode None Game No. 251 Rogue 247 Adventurer 0 Explorer 4 Win Type - Total 27 Types 9/1/2/6/2/2/3/1/1/0 Lore% 69 Gallery% 75 Achievement% 62 Wizard Run 0 Options --------- Layout 1 ASCII 0 Keyboard 0 Movement Mouse Keybinds 0 Fullscreen 1 Font 24/Smallcaps Map View 50x35 Zoom Use 0% Tactical HUD 1 Map Filters NONE Filters NONE Steam 1 RUN: ba240224-a27d-48fd-862d-f8f97aa0bb35